[Event "Walton Rating Tournament 2023"]
[Site "Dhaka"]
[Date "2023.12.31"]
[Round "1.1"]
[White "Rahman, Ziaur"]
[Black "Warsia, Khusbu"]
[Result "1-0"]
[ECO "A25"]
[WhiteElo "2436"]
[BlackElo "1661"]
[Annotator "RC"]
[PlyCount "77"]
[EventDate "2023.12.30"]
[EventType "swiss"]
[EventCountry "BAN"]
[SourceTitle "playchess.com"]
[Source "ChessBase"]
[SourceQuality "1"]
[TimeControl "5400+30"]

1. c4 {[%emt 1:31:00]} e5 {[%emt 1:31:00]} 2. g3 {[%emt 0:00:30]} Nf6 {[%emt 0:00:30]} 3. Bg2 {[%emt 0:00:30]} Nc6 {[%emt 0:00:30]} 4. Nc3 {[%emt 0:00:30]} Bb4 {[%emt 0:00:30]} 5. Nd5 {[%emt 0:00:30]} O-O {[%emt 0:00:30]} 6. a3 {[%emt 0:00:30]} Be7 {[%emt 0:00:30]} 7. b4 {[%emt 0:00:30]} d6 {[%emt 0:00:30]} 8. Bb2 {[%emt 0:00:30]} Be6 {[%emt 0:00:30]} 9. d3 {[%emt 0:00:30]} Rb8 {[%emt 0:00:30]} 10. b5 {[%emt 0:00:30]} Bxd5 {[%emt 0:00:30]} 11. cxd5 {[%emt 0:00:30]} Na5 {[%emt 0:00:30]} 12. Bc3 {[%emt 0:00:30]} c5 {[%emt 0:00:30]} 13. Rb1 {[%emt 0:00:30]} Qc7 {[%emt 0:00:30]} 14. e3 {[%emt 0:00:30]} c4 {[%emt 0:00:30]} 15. Ne2 {[%emt 0:00:30]} cxd3 {[%emt 0:00:30]} 16. Qxd3 {[%emt 0:00:30]} Qc4 {[%emt 0:00:30]} 17. Qd2 {[%emt 0:00:30]} b6 {[%emt 0:00:30]} 18. O-O {[%emt 0:00:30]} Nb7 {[%emt 0:00:30]} 19. Rb4 {[%emt 0:00:30]} Qc8 {[%emt 0:00:30]} 20. Bb2 {[%emt 0:00:30]} Nc5 {[%emt 0:00:30]} 21. h3 {[%emt 0:00:30]} a5 {[%emt 0:00:30]} 22. Rc4 {[%emt 0:00:30]} Qd7 {[%emt 0:00:30]} 23. a4 {[%emt 0:00:30]} Qf5 {[%emt 0:00:30]} 24. Ba3 {[%emt 0:00:30]} Nfd7 {[%emt 0:00:30]} 25. g4 {[%emt 0:00:30]} Qf6 {[%emt 0:00:30]} 26. Ng3 {[%emt 0:00:30]} g6 {[%emt 0:00:30]} 27. Qc2 {[%emt 0:00:30]} Rfc8 {[%emt 0:00:30]} 28. Bb2 {[%emt 0:00:30]} Bf8 {[%emt 0:00:30]} 29. Rc1 {[%emt 0:00:30]} Qe7 {[%emt 0:00:30]} 30. Ne4 {[%emt 0:00:30]} Bh6 {[%emt 0:00:30]} 31. h4 {[%emt 0:00:30]} f6 {[%emt 0:00:30]} 32. Ng3 {[%emt 0:00:30]} Rf8 {[%emt 0:00:30]} 33. h5 {[%emt 0:00:30]} Qf7 {[%emt 0:00:30]} 34. f4 {[%emt 0:00:30]} f5 {[%emt 0:00:30]} 35. hxg6 {[%emt 0:00:30]} hxg6 {[%emt 0:00:30]} 36. gxf5 {[%emt 0:00:30]} gxf5 {[%emt 0:00:30]} 37. Bh3 {[%emt 0:00:30]} Qg6 {[%emt 0:00:30]} 38. Kh2 {[%emt 0:00:30]} Ne4 {[%emt 0:00:30]} 39. Nxe4 {[%emt 0:00:30]} 1-0

[Event "Walton Rating Tournament 2023"]
[Site "Dhaka"]
[Date "2023.12.31"]
[Round "1.2"]
[White "Osman, Goni"]
[Black "Reefat, Bin-Sattar"]
[Result "0-1"]
[ECO "C02"]
[WhiteElo "1678"]
[BlackElo "2352"]
[Annotator "RC"]
[PlyCount "41"]
[EventDate "2023.12.30"]
[EventType "swiss"]
[EventCountry "BAN"]
[SourceTitle "playchess.com"]
[Source "ChessBase"]
[SourceQuality "1"]
[TimeControl "5400+30"]

1. e4 {[%emt 1:31:00]} e6 {[%emt 1:31:00]} 2. Nf3 {[%emt 0:00:30]} d5 {[%emt 0:00:30]} 3. e5 {[%emt 0:00:30]} Bd7 {[%emt 0:00:30]} 4. d4 {[%emt 0:00:30]} c5 {[%emt 0:00:30]} 5. c3 {[%emt 0:00:30]} Nc6 {[%emt 0:00:30]} 6. Bd3 {[%emt 0:00:30]} cxd4 {[%emt 0:00:30]} 7. cxd4 {[%emt 0:00:30]} Qb6 {[%emt 0:00:30]} 8. O-O {[%emt 0:00:30]} Nxd4 {[%emt 0:00:30]} 9. Re1 {[%emt 0:00:30]} Bc5 {[%emt 0:00:30]} 10. Nc3 {[%emt 0:00:30]} Ne7 {[%emt 0:00:30]} 11. Ng5 {[%emt 0:00:30]} Ndf5 {[%emt 0:00:30]} 12. Qf3 {[%emt 0:00:30]} h6 {[%emt 0:00:30]} 13. Nh3 {[%emt 0:00:30]} O-O {[%emt 0:00:30]} 14. Ne2 {[%emt 0:00:30]} f6 {[%emt 0:00:30]} 15. Nef4 {[%emt 0:00:30]} fxe5 {[%emt 0:00:30]} 16. Rxe5 {[%emt 0:00:30]} Qd6 {[%emt 0:00:30]} 17. Re1 {[%emt 0:00:30]} e5 {[%emt 0:00:30]} 18. Bxf5 {[%emt 0:00:30]} Rxf5 {[%emt 0:00:30]} 19. Qg3 {[%emt 0:00:30]} exf4 {[%emt 0:00:30]} 20. Bxf4 {[%emt 0:00:30]} Qf6 {[%emt 0:00:30]} 21. Be3 {[%emt 0:00:30]} 0-1

[Event "Walton Rating Tournament 2023"]
[Site "Dhaka"]
[Date "2023.12.31"]
[Round "1.3"]
[White "Zia, Tahsin Tajwar"]
[Black "Safayat, Kibria Azaan"]
[Result "1-0"]
[ECO "C25"]
[WhiteElo "2303"]
[BlackElo "1655"]
[Annotator "RC"]
[PlyCount "61"]
[EventDate "2023.12.30"]
[EventType "swiss"]
[EventCountry "BAN"]
[SourceTitle "playchess.com"]
[Source "ChessBase"]
[SourceQuality "1"]
[TimeControl "5400+30"]

1. e4 {[%emt 1:31:00]} e5 {[%emt 1:31:00]} 2. Nc3 {[%emt 0:00:30]} Nc6 {[%emt 0:00:30]} 3. Bc4 {[%emt 0:00:30]} Bc5 {[%emt 0:00:30]} 4. d3 {[%emt 0:00:30]} d6 {[%emt 0:00:30]} 5. Nge2 {[%emt 0:00:30]} Be6 {[%emt 0:00:30]} 6. Bxe6 fxe6 7. Na4 {[%emt 0:01:00]} Bb6 {[%emt 0:01:00]} 8. Nxb6 {[%emt 0:00:30]} axb6 {[%emt 0:00:30]} 9. O-O {[%emt 0:00:30]} Nf6 {[%emt 0:00:30]} 10. Bg5 {[%emt 0:00:30]} O-O {[%emt 0:00:30]} 11. c3 Qd7 {[%emt 0:00:30]} 12. Ng3 h6 {[%emt 0:00:30]} 13. Be3 Kh8 {[%emt 0:00:30]} 14. d4 exd4 15. cxd4 e5 {[%emt 0:01:00]} 16. d5 {[%emt 0:03:00]} Ne7 {[%emt 0:00:30]} 17. f3 {[%emt 0:00:30]} c6 {[%emt 0:00:30]} 18. dxc6 {[%emt 0:00:30]} bxc6 {[%emt 0:00:30]} 19. Qd2 {[%emt 0:00:30]} c5 {[%emt 0:00:30]} 20. Rfd1 {[%emt 0:00:30]} Rfd8 {[%emt 0:00:30]} 21. Qf2 {[%emt 0:00:30]} Qe6 {[%emt 0:00:30]} 22. Qd2 {[%emt 0:00:30]} Kg8 {[%emt 0:00:30]} 23. a3 {[%emt 0:00:30]} d5 {[%emt 0:00:30]} 24. exd5 {[%emt 0:00:30]} Rxd5 {[%emt 0:00:30]} 25. Qc2 {[%emt 0:00:30]} Rad8 {[%emt 0:00:30]} 26. Rxd5 {[%emt 0:00:30]} Qxd5 {[%emt 0:00:30]} 27. Re1 {[%emt 0:00:30]} Nc6 {[%emt 0:00:30]} 28. Bxh6 {[%emt 0:00:30]} gxh6 {[%emt 0:00:30]} 29. Qg6+ {[%emt 0:00:30]} Kf8 {[%emt 0:00:30]} 30. Qxf6+ {[%emt 0:00:30]} Ke8 {[%emt 0:00:30]} 31. Nf5 {[%emt 0:00:30]} 1-0

[Event "Walton Rating Tournament 2023"]
[Site "Dhaka"]
[Date "2023.12.31"]
[Round "1.4"]
[White "Md Rajib Hasan"]
[Black "Manon, Reja Neer"]
[Result "0-1"]
[ECO "B31"]
[WhiteElo "1644"]
[BlackElo "2243"]
[Annotator "RC"]
[PlyCount "82"]
[EventDate "2023.12.30"]
[EventType "swiss"]
[EventCountry "BAN"]
[SourceTitle "playchess.com"]
[Source "ChessBase"]
[SourceQuality "1"]
[TimeControl "5400+30"]

1. e4 {[%emt 1:31:00]} c5 {[%emt 1:31:00]} 2. Nf3 {[%emt 0:00:30]} Nc6 {[%emt 0:00:30]} 3. Bb5 {[%emt 0:00:30]} g6 {[%emt 0:00:30]} 4. O-O {[%emt 0:00:30]} Bg7 {[%emt 0:00:30]} 5. c4 e6 {[%emt 0:00:30]} 6. Nc3 {[%emt 0:01:00]} Nge7 {[%emt 0:00:30]} 7. d3 {[%emt 0:00:30]} Qc7 {[%emt 0:00:30]} 8. Re1 {[%emt 0:00:30]} O-O {[%emt 0:00:30]} 9. Bg5 {[%emt 0:00:30]} h6 10. Bh4 d6 {[%emt 0:01:00]} 11. h3 {[%emt 0:01:00]} f5 {[%emt 0:00:30]} 12. Bxe7 {[%emt 0:00:30]} Nxe7 {[%emt 0:00:30]} 13. Qe2 {[%emt 0:00:30]} e5 14. h4 {[%emt 0:00:30]} fxe4 15. Qxe4 Rf4 {[%emt 0:01:30]} 16. Nd5 {[%emt 0:01:00]} Nxd5 17. Qxd5+ {[%emt 0:00:30]} Kh7 18. g3 {[%emt 0:00:30]} Rf6 {[%emt 0:01:30]} 19. Nd2 {[%emt 0:00:30]} Be6 20. Qg2 Raf8 {[%emt 0:01:00]} 21. Ne4 Rf3 {[%emt 0:00:30]} 22. Re3 {[%emt 0:01:30]} Bg4 23. Nd2 Rxf2 24. Qxf2 {[%emt 0:01:00]} Rxf2 {[%emt 0:01:30]} 25. Kxf2 a6 {[%emt 0:00:30]} 26. Be8 Qd8 {[%emt 0:00:30]} 27. Bxg6+ {[%emt 0:01:30]} Kxg6 {[%emt 0:00:30]} 28. Ne4 {[%emt 0:00:30]} Qf8+ {[%emt 0:00:30]} 29. Kg2 h5 {[%emt 0:00:30]} 30. Rc1 {[%emt 0:01:00]} Bh6 31. Ng5 Bxg5 {[%emt 0:01:00]} 32. hxg5 {[%emt 0:01:00]} Bd7 {[%emt 0:00:30]} 33. Rc2 {[%emt 0:00:30]} Qf5 34. Rf2 Qh3+ 35. Kg1 Bc6 {[%emt 0:01:30]} 36. Rh2 Qg4 37. Rh4 {[%emt 0:02:00]} Qd1+ 38. Kf2 Qd2+ 39. Re2 Qxd3 40. Re3 {[%emt 0:01:30]} Qf5+ 41. Ke1 Kxg5 {[%emt 0:03:00]} 0-1

[Event "Walton Rating Tournament 2023"]
[Site "Dhaka"]
[Date "2023.12.31"]
[Round "1.5"]
[White "Subrota, Biswas"]
[Black "Moniruzzaman, Moni"]
[Result "1-0"]
[ECO "B01"]
[WhiteElo "2223"]
[BlackElo "1623"]
[Annotator "RC"]
[PlyCount "79"]
[EventDate "2023.12.30"]
[EventType "swiss"]
[EventCountry "BAN"]
[SourceTitle "playchess.com"]
[Source "ChessBase"]
[SourceQuality "1"]
[TimeControl "5400+30"]

1. e4 {[%emt 1:31:00]} d5 {[%emt 1:31:00]} 2. exd5 {[%emt 0:00:30]} Nf6 {[%emt 0:00:30]} 3. d4 {[%emt 0:00:30]} Nxd5 {[%emt 0:00:30]} 4. c4 {[%emt 0:00:30]} Nf6 {[%emt 0:00:30]} 5. Nc3 {[%emt 0:00:30]} c6 {[%emt 0:00:30]} 6. Nf3 {[%emt 0:00:30]} Bg4 {[%emt 0:00:30]} 7. Be3 {[%emt 0:00:30]} e6 {[%emt 0:00:30]} 8. h3 {[%emt 0:00:30]} Bxf3 {[%emt 0:00:30]} 9. Qxf3 {[%emt 0:00:30]} Nbd7 {[%emt 0:00:30]} 10. g4 {[%emt 0:00:30]} h6 {[%emt 0:00:30]} 11. h4 {[%emt 0:00:30]} h5 {[%emt 0:00:30]} 12. g5 {[%emt 0:00:30]} Ng4 {[%emt 0:00:30]} 13. Bf4 {[%emt 0:00:30]} e5 {[%emt 0:00:30]} 14. dxe5 {[%emt 0:00:30]} Ngxe5 {[%emt 0:00:30]} 15. Bxe5 {[%emt 0:00:30]} Nxe5 {[%emt 0:00:30]} 16. Qe2 {[%emt 0:00:30]} Qd4 {[%emt 0:00:30]} 17. Rh3 {[%emt 0:00:30]} f6 {[%emt 0:00:30]} 18. Re3 {[%emt 0:00:30]} Kf7 {[%emt 0:00:30]} 19. Re4 {[%emt 0:00:30]} Qd7 {[%emt 0:00:30]} 20. Rd1 {[%emt 0:00:30]} Qc7 {[%emt 0:00:30]} 21. gxf6 {[%emt 0:00:30]} gxf6 {[%emt 0:00:30]} 22. Bh3 {[%emt 0:00:30]} Rd8 {[%emt 0:00:30]} 23. f4 {[%emt 0:00:30]} Rxd1+ {[%emt 0:00:30]} 24. Nxd1 {[%emt 0:00:30]} Ng6 {[%emt 0:00:30]} 25. Be6+ {[%emt 0:00:30]} Kg7 {[%emt 0:00:30]} 26. Ne3 {[%emt 0:00:30]} Bb4+ {[%emt 0:00:30]} 27. Kf1 {[%emt 0:00:30]} Nxf4 {[%emt 0:00:30]} 28. Qf3 {[%emt 0:00:30]} Nxe6 {[%emt 0:00:30]} 29. Rxe6 {[%emt 0:00:30]} Qf7 {[%emt 0:00:30]} 30. Nf5+ {[%emt 0:00:30]} Kh7 {[%emt 0:00:30]} 31. Qf4 {[%emt 0:00:30]} Bf8 {[%emt 0:00:30]} 32. Re2 {[%emt 0:00:30]} b5 {[%emt 0:00:30]} 33. b3 {[%emt 0:00:30]} a5 {[%emt 0:00:30]} 34. a4 {[%emt 0:00:30]} bxc4 {[%emt 0:00:30]} 35. bxc4 {[%emt 0:00:30]} Kg8 36. Rg2+ {[%emt 0:00:30]} Kh7 {[%emt 0:01:00]} 37. Re2 {[%emt 0:00:30]} Kg8 {[%emt 0:00:30]} 38. Qg3+ {[%emt 0:00:30]} Kh7 {[%emt 0:00:30]} 39. Qd3 {[%emt 0:00:30]} Qc7 {[%emt 0:00:30]} 40. Ne7+ {[%emt 0:00:30]} 1-0

[Event "Walton Rating Tournament 2023"]
[Site "Dhaka"]
[Date "2023.12.31"]
[Round "1.6"]
[White "Faysal, Yousuf"]
[Black "Mohammad Minhaz Uddin"]
[Result "0-1"]
[ECO "E22"]
[WhiteElo "1609"]
[BlackElo "2221"]
[Annotator "RC"]
[PlyCount "35"]
[EventDate "2023.12.30"]
[EventType "swiss"]
[EventCountry "BAN"]
[SourceTitle "playchess.com"]
[Source "ChessBase"]
[SourceQuality "1"]
[TimeControl "5400+30"]

1. d4 {[%emt 1:31:00]} Nf6 {[%emt 1:31:00]} 2. c4 {[%emt 0:00:30]} e6 {[%emt 0:00:30]} 3. Nc3 {[%emt 0:00:30]} Bb4 {[%emt 0:00:30]} 4. Qb3 {[%emt 0:00:30]} c5 {[%emt 0:00:30]} 5. e3 {[%emt 0:00:30]} Ne4 {[%emt 0:00:30]} 6. Nf3 {[%emt 0:00:30]} b6 {[%emt 0:00:30]} 7. Be2 {[%emt 0:00:30]} Bb7 {[%emt 0:00:30]} 8. O-O {[%emt 0:00:30]} Bxc3 {[%emt 0:00:30]} 9. bxc3 {[%emt 0:00:30]} d6 {[%emt 0:00:30]} 10. Nd2 {[%emt 0:00:30]} Nxd2 {[%emt 0:00:30]} 11. Bxd2 {[%emt 0:00:30]} Nc6 {[%emt 0:00:30]} 12. a4 {[%emt 0:00:30]} Na5 {[%emt 0:00:30]} 13. Qa2 {[%emt 0:00:30]} f5 {[%emt 0:00:30]} 14. f4 {[%emt 0:00:30]} O-O {[%emt 0:00:30]} 15. Bf3 {[%emt 0:00:30]} Ba6 {[%emt 0:00:30]} 16. Be2 {[%emt 0:00:30]} d5 {[%emt 0:00:30]} 17. Bc1 {[%emt 0:00:30]} Bxc4 {[%emt 0:00:30]} 18. Bxc4 {[%emt 0:00:30]} 0-1

[Event "Walton Rating Tournament 2023"]
[Site "Dhaka"]
[Date "2023.12.31"]
[Round "2.1"]
[White "Alam, Monjur"]
[Black "Rahman, Ziaur"]
[Result "0-1"]
[ECO "E30"]
[WhiteElo "1848"]
[BlackElo "2436"]
[Annotator "RC"]
[PlyCount "68"]
[EventDate "2023.12.30"]
[EventType "swiss"]
[EventCountry "BAN"]
[SourceTitle "playchess.com"]
[Source "ChessBase"]
[SourceQuality "1"]
[TimeControl "5400+30"]

1. d4 {[%emt 0:00:21]} Nf6 {[%emt 0:00:24]} 2. c4 {[%emt 0:00:10]} e6 {[%emt 0:00:43]} 3. Nc3 {[%emt 0:00:04]} Bb4 {[%emt 0:01:02]} 4. Bg5 {[%emt 0:01:50]} h6 {[%emt 0:00:44]} 5. Bh4 {[%emt 0:00:55]} c5 {[%emt 0:02:45]} 6. Bxf6 {[%emt 0:02:07]} Qxf6 {[%emt 0:00:35]} 7. e3 {[%emt 0:00:07]} Nc6 {[%emt 0:00:26]} 8. Nf3 {[%emt 0:00:22]} Bxc3+ {[%emt 0:01:19]} 9. bxc3 {[%emt 0:00:14]} O-O {[%emt 0:03:31]} 10. Be2 {[%emt 0:01:11]} d6 {[%emt 0:01:16]} 11. O-O {[%emt 0:01:56]} e5 {[%emt 0:02:06]} 12. Rc1 {[%emt 0:05:31]} Bf5 {[%emt 0:05:51]} 13. d5 {[%emt 0:04:10]} Nb8 {[%emt 0:00:51]} 14. Nd2 {[%emt 0:01:32]} e4 {[%emt 0:02:14]} 15. Re1 {[%emt 0:02:45]} Nd7 {[%emt 0:00:52]} 16. Bg4 {[%emt 0:04:06]} Rfe8 {[%emt 0:02:57]} 17. Bxf5 {[%emt 0:03:11]} Qxf5 {[%emt 0:00:03]} 18. Qc2 {[%emt 0:00:23]} Qg4 {[%emt 0:02:03]} 19. h3 {[%emt 0:04:22]} Qg6 {[%emt 0:00:13]} 20. f4 {[%emt 0:05:28]} f5 {[%emt 0:01:34]} 21. Kh2 {[%emt 0:01:53]} Nf6 {[%emt 0:01:00]} 22. g3 {[%emt 0:04:51]} Re7 {[%emt 0:01:08]} 23. Rg1 {[%emt 0:02:33]} Kh8 {[%emt 0:00:36]} 24. Nf1 {[%emt 0:00:44]} a6 {[%emt 0:05:42]} 25. Rb1 {[%emt 0:00:41]} b5 {[%emt 0:00:27]} 26. Nd2 {[%emt 0:05:49]} Qh5 {[%emt 0:02:10]} 27. Rge1 {[%emt 0:02:45]} g5 {[%emt 0:02:50]} 28. Qd1 {[%emt 0:01:26]} Qg6 {[%emt 0:01:44]} 29. Qe2 {[%emt 0:03:23]} Rg7 {[%emt 0:01:09]} 30. Rg1 {[%emt 0:01:16]} Rag8 {[%emt 0:00:45]} 31. a4 {[%emt 0:03:55]} bxa4 {[%emt 0:03:07]} 32. Rb6 {[%emt 0:04:46]} gxf4 {[%emt 0:01:54]} 33. Rxd6 {[%emt 0:02:03]} Ng4+ {[%emt 0:01:26]} 34. hxg4 {[%emt 0:00:58]} fxg3+ {[%emt 0:00:15]} 0-1

[Event "Walton Rating Tournament 2023"]
[Site "Dhaka"]
[Date "2023.12.31"]
[Round "2.2"]
[White "Reefat, Bin-Sattar"]
[Black "Mortuza Mahathir, Islam"]
[Result "0-1"]
[ECO "B20"]
[WhiteElo "2352"]
[BlackElo "1844"]
[Annotator "RC"]
[PlyCount "40"]
[EventDate "2023.12.30"]
[EventType "swiss"]
[EventCountry "BAN"]
[SourceTitle "playchess.com"]
[Source "ChessBase"]
[SourceQuality "1"]
[TimeControl "5400+30"]

1. e4 {[%emt 0:02:09]} c5 {[%emt 0:00:31]} 2. b3 {[%emt 0:00:34]} Nc6 {[%emt 0:01:13]} 3. Bb2 {[%emt 0:00:05]} e5 {[%emt 0:02:07]} 4. Bb5 {[%emt 0:00:04]} Nd4 {[%emt 0:07:02]} 5. Bc4 {[%emt 0:00:04]} Nf6 {[%emt 0:01:37]} 6. Nc3 {[%emt 0:00:17]} d6 {[%emt 0:00:44]} 7. Nge2 {[%emt 1:30:47]} g6 {[%emt 0:05:05]} 8. O-O {[%emt 0:15:25]} Bg7 {[%emt 0:00:55]} 9. f4 {[%emt 0:04:44]} O-O {[%emt 1:15:46]} 10. Bd3 {[%emt 1:10:17]} Re8 {[%emt 0:15:56]} 11. fxe5 {[%emt 0:09:36]} dxe5 {[%emt 0:55:18]} 12. Ng3 {[%emt 0:09:30]} a6 {[%emt 0:05:04]} 13. a4 {[%emt 0:01:33]} b6 {[%emt 0:01:29]} 14. h3 {[%emt 0:11:31]} Nxb3 {[%emt 0:09:08]} 15. Rb1 {[%emt 0:01:34]} Nd4 {[%emt 0:07:08]} 16. Nd5 {[%emt 0:00:25]} Nxd5 {[%emt 0:34:46]} 17. exd5 {[%emt 0:00:44]} e4 {[%emt 0:00:00]} 18. Nxe4 {[%emt 0:01:28]} Bf5 {[%emt 0:00:00]} 19. Rxf5 {[%emt 0:07:27]} gxf5 {[%emt 0:00:00]} 20. Ng3 {[%emt 0:01:00]} Qg5 {[%emt 0:00:00]} 0-1

[Event "Walton Rating Tournament 2023"]
[Site "Dhaka"]
[Date "2023.12.31"]
[Round "2.3"]
[White "Dewan, Shahidul Amin"]
[Black "Zia, Tahsin Tajwar"]
[Result "0-1"]
[ECO "B15"]
[WhiteElo "1818"]
[BlackElo "2303"]
[Annotator "RC"]
[PlyCount "116"]
[EventDate "2023.12.30"]
[EventType "swiss"]
[EventCountry "BAN"]
[SourceTitle "playchess.com"]
[Source "ChessBase"]
[SourceQuality "1"]
[TimeControl "5400+30"]

1. e4 {[%emt 0:07:49]} c6 {[%emt 0:00:09]} 2. d4 {[%emt 0:00:11]} d5 {[%emt 0:00:01]} 3. Nc3 {[%emt 0:00:10]} dxe4 {[%emt 0:00:11]} 4. Nxe4 {[%emt 0:00:12]} Nf6 {[%emt 0:00:05]} 5. Nxf6+ {[%emt 0:00:42]} exf6 {[%emt 0:00:02]} 6. Nf3 {[%emt 0:00:45]} Bd6 {[%emt 0:00:02]} 7. Be3 {[%emt 0:00:38]} O-O {[%emt 0:00:10]} 8. Qd2 {[%emt 0:02:05]} Be6 {[%emt 0:00:50]} 9. Bd3 {[%emt 0:02:08]} Nd7 {[%emt 0:00:59]} 10. O-O {[%emt 0:00:43]} Qc7 {[%emt 0:05:21]} 11. g3 {[%emt 0:05:39]} b5 {[%emt 0:05:25]} 12. Nh4 {[%emt 0:07:33]} g6 {[%emt 0:00:49]} 13. Ng2 {[%emt 0:07:51]} Nb6 {[%emt 0:07:56]} 14. Nf4 {[%emt 0:03:09]} Bxf4 {[%emt 0:00:06]} 15. Bxf4 {[%emt 0:00:24]} Qd7 {[%emt 0:00:05]} 16. c3 {[%emt 0:02:21]} Rfe8 {[%emt 0:09:55]} 17. Rfe1 {[%emt 0:04:04]} Bd5 {[%emt 0:01:15]} 18. b3 {[%emt 0:01:31]} Qg4 {[%emt 0:20:01]} 19. Be2 {[%emt 0:02:49]} Qf5 {[%emt 0:10:58]} 20. Bd3 {[%emt 0:02:19]} Qg4 {[%emt 0:11:05]} 21. Be2 {[%emt 0:01:13]} Qd7 {[%emt 0:00:06]} 22. Bf1 {[%emt 0:03:58]} a5 {[%emt 0:02:02]} 23. Rxe8+ {[%emt 0:05:31]} Qxe8 {[%emt 0:06:44]} 24. Re1 {[%emt 0:00:28]} Qd7 {[%emt 0:00:06]} 25. Rc1 {[%emt 0:03:16]} Qe6 {[%emt 0:01:26]} 26. Re1 {[%emt 0:00:22]} Qf5 {[%emt 0:00:38]} 27. Bd3 {[%emt 0:00:52]} Qd7 {[%emt 0:00:07]} 28. Qe2 {[%emt 0:02:06]} Be6 {[%emt 0:01:02]} 29. Be3 {[%emt 0:05:46]} Nd5 {[%emt 0:02:28]} 30. Bd2 {[%emt 0:03:53]} Bg4 {[%emt 0:06:11]} 31. f3 {[%emt 0:02:52]} Be6 {[%emt 0:00:07]} 32. Be4 {[%emt 0:01:44]} Nb6 {[%emt 0:01:02]} 33. Be3 {[%emt 0:04:09]} a4 {[%emt 0:00:19]} 34. b4 {[%emt 0:03:55]} Bc4 {[%emt 0:01:33]} 35. Qd2 {[%emt 0:04:37]} Re8 {[%emt 0:00:35]} 36. Bf2 {[%emt 0:00:56]} f5 {[%emt 0:00:42]} 37. Bb1 {[%emt 0:00:18]} Rxe1+ {[%emt 0:00:07]} 38. Qxe1 {[%emt 0:01:24]} Qd5 {[%emt 0:00:23]} 39. Qe8+ {[%emt 0:01:09]} Kg7 {[%emt 0:00:01]} 40. Qe5+ {[%emt 0:00:50]} f6 {[%emt 0:01:43]} 41. Qe7+ {[%emt 0:00:29]} Qf7 {[%emt 0:00:01]} 42. Qxf7+ {[%emt 0:01:42]} Kxf7 {[%emt 0:00:01]} 43. Be1 {[%emt 0:00:50]} Nd5 {[%emt 0:00:57]} 44. Kf2 {[%emt 0:00:20]} Ke6 {[%emt 0:00:30]} 45. Bd2 {[%emt 0:00:49]} Ne7 {[%emt 0:01:38]} 46. h4 {[%emt 0:01:22]} Nc8 {[%emt 0:00:44]} 47. a3 {[%emt 0:02:10]} Nd6 {[%emt 0:00:51]} 48. Bf4 {[%emt 0:01:00]} Nf7 {[%emt 0:00:08]} 49. Bd2 {[%emt 0:01:44]} g5 {[%emt 0:00:54]} 50. h5 {[%emt 0:01:51]} Nh6 {[%emt 0:00:14]} 51. Ke3 {[%emt 0:00:33]} Kd6 {[%emt 0:00:20]} 52. Bd3 {[%emt 0:00:27]} Bf7 {[%emt 0:00:08]} 53. g4 {[%emt 0:00:18]} fxg4 {[%emt 0:00:11]} 54. Bxh7 {[%emt 0:00:57]} gxf3 {[%emt 0:00:56]} 55. Kxf3 {[%emt 0:00:09]} Bxh5+ {[%emt 0:00:04]} 56. Ke4 {[%emt 0:00:16]} Bf7 {[%emt 0:00:21]} 57. Kd3 {[%emt 0:00:50]} Be6 {[%emt 0:00:20]} 58. Be4 {[%emt 0:00:15]} Bf5 {[%emt 0:00:04]} 0-1

[Event "Walton Rating Tournament 2023"]
[Site "Dhaka"]
[Date "2023.12.31"]
[Round "2.4"]
[White "Manon, Reja Neer"]
[Black "Mukitul, Islam Ripon"]
[Result "1-0"]
[ECO "C45"]
[WhiteElo "2243"]
[BlackElo "1830"]
[Annotator "ChessBase"]
[PlyCount "57"]
[EventDate "2023.12.30"]
[EventType "swiss"]
[EventCountry "BAN"]
[SourceTitle "playchess.com"]
[Source "ChessBase"]
[SourceQuality "1"]
[TimeControl "5400+30"]

1. e4 {[%emt 0:00:00]} e5 {[%emt 0:12:53]} 2. Nf3 {[%emt 0:00:09]} Nc6 {[%emt 0:00:26]} 3. d4 {[%emt 0:00:06]} exd4 {[%emt 0:04:03]} 4. Nxd4 {[%emt 0:00:06]} Nxd4 {[%emt 0:03:58]} 5. Qxd4 {[%emt 0:00:01]} d6 {[%emt 0:03:42]} 6. Nc3 {[%emt 0:00:14]} Nf6 {[%emt 0:04:27]} 7. Bg5 {[%emt 0:00:01]} Be7 {[%emt 0:00:27]} 8. O-O-O {[%emt 0:00:03]} O-O {[%emt 0:10:20]} 9. e5 {[%emt 0:02:20]} Ne8 {[%emt 0:04:54]} 10. Bxe7 {[%emt 0:01:29]} Qxe7 {[%emt 0:00:03]} 11. Nd5 {[%emt 0:01:07]} Qd8 {[%emt 0:02:38]} 12. exd6 {[%emt 0:01:50]} cxd6 {[%emt 0:04:21]} 13. Bd3 {[%emt 0:02:43]} Be6 {[%emt 0:01:24]} 14. Qe4 {[%emt 0:01:20]} g6 {[%emt 0:02:15]} 15. Nf4 {[%emt 0:01:56]} Ng7 {[%emt 0:17:30]} 16. h4 {[%emt 0:01:42]} Re8 {[%emt 0:09:42]} 17. Qd4 {[%emt 0:03:18]} Qa5 {[%emt 0:05:07]} 18. h5 {[%emt 0:01:31]} Qe5 {[%emt 0:03:42]} 19. Qb4 {[%emt 0:01:41]} a5 {[%emt 0:00:33]} 20. Qd2 {[%emt 0:00:47]} Bxa2 {[%emt 0:01:54]} 21. hxg6 {[%emt 0:02:59]} hxg6 {[%emt 0:00:04]} 22. Rh3 {[%emt 0:04:33]} Be6 {[%emt 0:05:32]} 23. Rh6 {[%emt 0:00:34]} Bg4 {[%emt 0:01:10]} 24. Rdh1 {[%emt 0:01:15]} Nf5 {[%emt 0:00:43]} 25. Bxf5 {[%emt 0:01:38]} Bxf5 {[%emt 0:00:38]} 26. Nd5 {[%emt 0:00:35]} Rac8 {[%emt 0:00:31]} 27. Rh8+ {[%emt 0:00:07]} Qxh8 {[%emt 0:00:15]} 28. Rxh8+ {[%emt 0:00:03]} Kxh8 {[%emt 0:00:04]} 29. Qh6+ {[%emt 0:00:02]} 1-0

[Event "Walton Rating Tournament 2023"]
[Site "Dhaka"]
[Date "2023.12.31"]
[Round "2.5"]
[White "Tanvir, Alam"]
[Black "Subrota, Biswas"]
[Result "0-1"]
[ECO "A81"]
[WhiteElo "1836"]
[BlackElo "2223"]
[Annotator "RC"]
[PlyCount "48"]
[EventDate "2023.12.30"]
[EventType "swiss"]
[EventCountry "BAN"]
[SourceTitle "playchess.com"]
[Source "ChessBase"]
[SourceQuality "1"]
[TimeControl "5400+30"]

1. d4 {[%emt 0:01:53]} f5 {[%emt 0:19:32]} 2. g3 {[%emt 0:02:14]} Nf6 {[%emt 0:00:06]} 3. Bg2 {[%emt 0:00:10]} d6 {[%emt 0:00:06]} 4. Bg5 {[%emt 0:00:27]} Nbd7 {[%emt 0:00:05]} 5. Nd2 {[%emt 0:00:14]} g6 {[%emt 0:00:56]} 6. e4 {[%emt 0:00:43]} fxe4 {[%emt 0:00:24]} 7. Nxe4 {[%emt 0:00:02]} Bg7 {[%emt 0:00:55]} 8. Nxf6+ {[%emt 0:01:05]} Nxf6 {[%emt 0:00:44]} 9. Ne2 {[%emt 0:00:20]} O-O {[%emt 0:02:08]} 10. O-O {[%emt 0:00:09]} c6 {[%emt 0:02:38]} 11. h3 {[%emt 0:00:48]} h6 {[%emt 0:04:14]} 12. Be3 {[%emt 0:00:32]} Bf5 {[%emt 0:03:31]} 13. g4 {[%emt 0:00:25]} Be4 {[%emt 0:00:22]} 14. f3 {[%emt 0:00:02]} Bd5 {[%emt 0:00:18]} 15. Qd3 {[%emt 0:00:18]} Bf7 {[%emt 0:01:22]} 16. Nf4 {[%emt 0:03:25]} e5 {[%emt 0:00:08]} 17. Nxg6 {[%emt 0:04:05]} e4 {[%emt 0:02:05]} 18. fxe4 {[%emt 0:00:26]} Bxg6 {[%emt 0:00:05]} 19. Qb3+ {[%emt 0:00:26]} Kh7 {[%emt 0:02:07]} 20. g5 {[%emt 0:00:42]} hxg5 {[%emt 0:02:15]} 21. Bxg5 {[%emt 0:00:03]} Qb6 {[%emt 0:00:36]} 22. Qg3 {[%emt 0:02:20]} Qxd4+ {[%emt 0:03:40]} 23. Kh1 {[%emt 0:00:20]} Nxe4 {[%emt 0:01:35]} 24. Qh4+ {[%emt 0:00:15]} Kg8 {[%emt 0:00:04]} 0-1